Workbook

Sheet Planilhas Calha Medição
A1: Ministério da Integração Nacional
A2: Companhia de Desenvolvimento dos Vales do São Francisco e do Parnaíba
A3: Obra: | C3: CALHA DE MEDIÇÃO NO RIO GORUTUBA
A4: Serviço:
A5: Extensão: | C5: 18,00 m
A6: Município: | C6: Janaúba - MG
A7: Data Base: | C7: 2016-11-14
A8: BDI Serv: | C8: 0.25
A9: PLANILHA ORÇAMENTÁRIA
A10: ITEM | B10: DESCRIÇÃO | C10: SICRO/CPU | D10: UND | E10: QUANT. | F10: PREÇO UNITÁRIO - SEM BDI (R$) | G10: PREÇO UNITÁRIO (R$) | H10: PREÇO TOTAL (R$) | I10: BDI
I11: =ROUND('BDI-serviços'!E29/100+1,4) -> 1.25
A12: 1.0 | B12: SERVIÇOS PRELIMINARES | E12: 0 | H12: =SUM(H13:H17) -> 22597.07
A13: 1.1 | B13: MOBILIZAÇÃO E DESMOBILIZAÇÃO | C13: CPU | D13: un | E13: 1 | F13: =COMPOSIÇÕES!H22 -> 4400.5 | G13: =ROUND($I$11*F13,2) -> 5500.63 | H13: =ROUND(G13*E13,2) -> 5500.63
A14: 1.2 | B14: ADIMINISTRAÇÃO LOCAL E MANUTENÇÃO DO CANTEIRO DE OBRAS | C14: CPU | D14: un | E14: 1 | F14: =COMPOSIÇÕES!H48 -> 4179 | G14: =ROUND($I$11*F14,2) -> 5223.75 | H14: 5223.75
A15: 1.3 | B15: FORNECIMENTO E INSTALAÇÃO DE PLACA DE IDENTIFICAÇÃO DA OBRA | C15: 74209/001 | D15: m² | E15: 4.5 | F15: 315.97 | G15: =ROUND($I$11*F15,2) -> 394.96 | H15: 1777.32
A16: 1.4 | B16: LOCACAO CONVENCIONAL DE OBRA, ATRAVÉS DE GABARITO DE TABUAS CORRIDAS PONTALETADAS A CADA 1,50M, SEM REAPROVEITAMENTO | C16: 73992/001 | D16: m² | E16: 216 | F16: 9.99 | G16: 10.98 | H16: 2371.68
A17: 1.5 | B17: DESVIO DO RIO | C17: CPU | D17: gl | E17: 1 | F17: 6178.95 | G17: =ROUND($I$11*F17,2) -> 7723.69 | H17: 7723.69
A18: 2.0 | B18: ESCAVAÇÃO E PREPARO DA FUNDAÇÃO COM ESTACAS AÇO | H18: =SUM(H19:H22) -> 3266
A19: 2.1.1 | B19: COMPACTACAO MECANICA DE VALAS,C/CONTR.DO GC >= 95% DO PN (C/COMPACTADORSOLOS C/ PLACA VIBRATORIA MOTOR DIESEL/GASOLINA 7 A 10 HP) | C19: 76444/002 | D19: m³ | E19: 40 | F19: 18.58 | G19: =ROUND($I$11*F19,2) -> 23.23 | H19: =ROUND(G19*E19,2) -> 929.2
A20: 2.1.2 | B20: ESCAVACAO MANUAL EM SOLO-PROF. ATE 1,50 M | C20: 79517/001 | D20: m³ | E20: 40 | F20: 25.02 | G20: =ROUND($I$11*F20,2) -> 31.28 | H20: =ROUND(G20*E20,2) -> 1251.2
A21: 2.1.3 | B21: ESCAVACAO MECANICA, A CEU ABERTO, EM MATERIAL DE 1A CATEGORIA, COM ESCAVADEIRA HIDRAULICA, CAPACIDADE DE 0,78 M3 | C21: 83338 | D21: m² | E21: 20 | F21: 2.14 | G21: =ROUND($I$11*F21,2) -> 2.68 | H21: 53.6
A22: 2.1.4 | B22: REGULARIZACAO E COMPACTACAO MANUAL DE TERRENO COM SOQUETE | C22: 5622 | D22: m² | E22: 200 | F22: 4.13 | G22: =ROUND($I$11*F22,2) -> 5.16 | H22: 1032
A23: 2.2 | B23: ESTRUTURA DE CONCRETO | H23: =SUM(H24:H28) -> 35165.97
A24: 2.2.1 | B24: CONCRETO FCK=15MPA, PREPARO COM BETONEIRA, SEM LANCAMENTO | C24: 6045 | D24: m³ | E24: 12 | F24: 316.58 | G24: =ROUND($I$11*F24,2) -> 395.73 | H24: 4748.76
B25: LANCAMENTO/APLICACAO MANUAL DE CONCRETO EM FUNDACOES/ESTRUTURAS | C25: 74157/003 | D25: m³ | E25: 12 | F25: 88.66 | G25: =ROUND($I$11*F25,2) -> 110.83 | H25: =ROUND(G25*E25,2) -> 1329.96
A26: 2.2.2 | B26: CONCRETO USINADO BOMBEADO FCK=25MPA, INCLUSIVE LANCAMENTO E ADENSAMENTO | C26: 74138/003 | D26: m³ | E26: 25.92 | F26: 325.29 | G26: =ROUND($I$11*F26,2) -> 406.61 | H26: 10539.33
A27: 2.2.3 | B27: ARMACAO ACO CA-50, DIAM. 6,3 (1/4) À 12,5MM(1/2) -FORNECIMENTO/ CORTE(PERDA DE 10%) / DOBRA / COLOCAÇÃO | C27: 74254/002 | D27: Kg | E27: 1555.2 | F27: 7.28 | G27: =ROUND($I$11*F27,2) -> 9.1 | H27: 14152.32
A28: 2.2.4 | B28: FORMA PARA ESTRUTURAS DE CONCRETO EM CHAPA DE MADEIRA COMPENSADA PLASTIFICADA, DE 1,10 X 2,20, ESPESSURA = 12 MM, 03 UTILIZACOES. (FABRICACAO, MONTAGEM E DESMONTAGEM - EXCLUSIVE ESCORAMENTO) | C28: 84218 | D28: m² | E28: 90 | F28: 39.07 | G28: =ROUND($I$11*F28,2) -> 48.84 | H28: 4395.6
A29: 2.3 | B29: FORNECIMENTO DE ESTACAS PARA FUNDAÇÃO | H29: =SUM(H30:H34) -> 35610.566
A30: 2.3.1 | B30: FORNECIMENTO DE ESTACA METÁLICA, PERFIL I DE 10" (Massa linear: 37,8 kg/m) | C30: COTAÇÃO | D30: kg | E30: =E31*37.8 -> 1852.2 | F30: 7.5 | G30: =ROUND($I$11*F30,2) -> 9.38 | H30: =G30*E30 -> 17373.636
A31: 2.3.2 | B31: CRAVAÇÃO DE ESTACAS METÁLICAS PERFIL I DE 10" (Massa linear: 37,8 kg/m) (Cotação: Construção e Mercado - Setembro/2015) | C31: CONST&MERC | D31: m | E31: 49 | F31: 52.51 | G31: =ROUND($I$11*F31,2) -> 65.64 | H31: =ROUND(G31*E31,2) -> 3216.36
A32: 2.3.3 | B32: CORTE PERFIL I DE 10" (Massa linear: 37,8 kg/m) (Cotação: Construção e Mercado - Setembro/2015) | C32: CONST&MERC | D32: und | E32: 14 | F32: 107.18 | G32: =ROUND($I$11*F32,2) -> 133.98 | H32: 1875.72
A33: 2.3.4 | B33: EMENDA DE TOPO PERFIL I DE 10" (Massa linear: 37,8 kg/m) (Cotação: Construção e Mercado - Setembro/2015) | C33: CONST&MERC | D33: und | E33: 14 | F33: 197.11 | G33: =ROUND($I$11*F33,2) -> 246.39 | H33: 3449.46
A34: 2.3.5 | B34: MOBILIZAÇÃO DE EQUIPE E EQUIPAMENTO PARA EXECUÇÃO DE ESTACAS METÁLICAS PERFIL I DE 10" (Cotação: Construção e Mercado - Setembro/2015) | C34: CONST&MERC | D34: gl | E34: 1 | F34: 7756.31 | G34: =ROUND($I$11*F34,2) -> 9695.39 | H34: 9695.39
A35: 2.4 | B35: LIMPEZA FINAL | H35: =H36 -> 488
A36: 2.4.1 | B36: LIMPEZA FINAL DA OBRA | C36: 9537 | D36: m² | E36: 200 | F36: 1.95 | G36: =ROUND($I$11*F36,2) -> 2.44 | H36: =G36*E36 -> 488
A37: 2.5 | B37: CALHA PARSHAL | H37: =SUM(H38) -> 25000
A38: 2.5.1 | B38: FORNECIMENTO E INSTALAÇÃO DE CALHA PARSHAL | C38: COTAÇÃO | D38: gl | E38: 1 | F38: 20000 | G38: =ROUND($I$11*F38,2) -> 25000 | H38: =G38*E38 -> 25000
B39: TOTAL GERAL | H39: =H29+H23+H18+H12+H35+H37 -> 122127.606

Sheet COMPOSIÇÕES
A1: CODEVASF | B1: COMPOSIÇÃO DE PREÇO UNITÁRIO
A2: OBRA: | G2: DATA:
A3: SERVIÇO :Mobilização e Desmobilização | G3: UNIDADE: | H3: GL
A4: EQUIPAMENTO
A5: DISCRIMINAÇÃO | B5: UNIDADE | C5: QUANT. | D5: PROD | E5: IMPROD | F5: P.UNIT. PROD | G5: P.UNIT. IMPR | H5: P.TOTAL
A6: Cavalo c/ carreta 3 eixos - 246 KW | B6: h | C6: 20 | D6: 1 | F6: 113.92 | G6: 16.79 | H6: =C6*D6*F6+C6*E6*G6 -> 2278.4
A7: Caminhão basculante, capacidade para 5,0 m³ (inclusive motorista) - VOLKSWAGEN VW-13.150 T | B7: h | C7: 10 | D7: 1 | F7: 85.14 | G7: 0 | H7: =C7*D7*F7+C7*E7*G7 -> 851.4
A8: Caminhão carroceria fixa | B8: h | C8: 10 | D8: 1 | F8: 87.07 | G8: 0 | H8: =C8*D8*F8+C8*E8*G8 -> 870.7
A9: SUB-TOTAL | H9: =SUM(H6:H8) -> 4000.5
A10: MATERIAL
A11: DISCRIMINAÇÃO | B11: UNIDADE | C11: QUANT. | G11: P.UNIT. | H11: P.TOTAL
A12: Passagem de ônibus | B12: unid. | C12: 8 | G12: 50 | H12: =C12*G12 -> 400
A13: SUB-TOTAL | H13: =SUM(H12:H12) -> 400
A14: SERVIÇOS - COMPOSIÇÕES AUXILIARES
A15: DISCRIMINAÇÃO | B15: UNIDADE | C15: QUANT. | G15: P.UNIT. | H15: P.TOTAL
H16: =C16*G16 -> 0
A17: SUB-TOTAL | H17: =SUM(H16:H16) -> 0
A18: MÃO DE OBRA
A19: DISCRIMINAÇÃO | B19: UNIDADE | C19: QUANT. | G19: P.UNIT. | H19: P.TOTAL
A20: SUB-TOTAL | H20: 0
A21: PRODUÇÃO DA EQUIPE | B21: 1 | C21: CUSTO | H21: =H20+H17+H13+H9 -> 4400.5
A22: TOTAL | H22: =H21/B21 -> 4400.5
A23: BDI % | H23: 1.25
A24: TOTAL DO SERVIÇO - R$ | H24: =ROUND(H22*H23,2) -> 5500.63
A25: CODEVASF | B25: COMPOSIÇÃO DE PREÇO UNITÁRIO
A26: OBRA: | G26: DATA:
A27: SERVIÇO :Administração local e manutenção do canteiro/localidade | G27: UNIDADE: | H27: GL
A28: EQUIPAMENTO
A29: DISCRIMINAÇÃO | B29: UNIDADE | C29: QUANT. | D29: PROD | E29: IMPROD | F29: P.UNIT. PROD | G29: P.UNIT. IMPR | H29: P.TOTAL
H30: =C30*D30*F30+C30*E30*G30 -> 0
A31: SUB-TOTAL | H31: =SUM(H30:H30) -> 0
A32: MATERIAL
A33: DISCRIMINAÇÃO | B33: UNIDADE | C33: QUANT. | G33: P.UNIT. | H33: P.TOTAL
A34: Telefone | B34: gl | C34: 1 | G34: 150 | H34: =C34*G34 -> 150
A35: Energia elétrica | B35: gl | C35: 1 | G35: 150 | H35: =C35*G35 -> 150
A36: Água e esgoto | B36: gl | C36: 1 | G36: 150 | H36: =C36*G36 -> 150
A37: SUB-TOTAL | H37: =SUM(H34:H36) -> 450
A38: SERVIÇOS - COMPOSIÇÕES AUXILIARES
A39: DISCRIMINAÇÃO | B39: UNIDADE | C39: QUANT. | G39: P.UNIT. | H39: P.TOTAL
H40: =C40*G40 -> 0
A41: SUB-TOTAL | H41: =SUM(H40:H40) -> 0
A42: MÃO DE OBRA
A43: DISCRIMINAÇÃO | B43: UNIDADE | C43: QUANT. | G43: P.UNIT. | H43: P.TOTAL
A44: Engenheiro Residente | B44: gl | C44: 0.25 | G44: 12722.6 | H44: =C44*G44 -> 3180.65
A45: Assistente Administrativo | B45: gl | C45: 0.25 | G45: 2193.4 | H45: =C45*G45 -> 548.35
A46: SUB-TOTAL | H46: =SUM(H44:H45) -> 3729
A47: PRODUÇÃO DA EQUIPE | B47: 1 | C47: CUSTO | H47: =H46+H41+H37+H31 -> 4179
A48: TOTAL | H48: =H47/B47 -> 4179
A49: BDI % | H49: 1.25
A50: TOTAL DO SERVIÇO - R$ | H50: =ROUND(H48*H49,2) -> 5223.75
A51: CODEVASF | B51: COMPOSIÇÃO DE PREÇO UNITÁRIO
A52: OBRA: | G52: DATA:
A53: SERVIÇO :Desvio do rio | G53: UNIDADE: | H53: gl
A54: EQUIPAMENTO
A55: DISCRIMINAÇÃO | B55: UNIDADE | C55: QUANT. | D55: PROD | E55: IMPROD | F55: P.UNIT. PROD | G55: P.UNIT. IMPR | H55: P.TOTAL
A56: Pá carregadeira sobre pneus, motor diesel 170 HP | B56: h | C56: 24 | D56: 0.5 | E56: 0.5 | F56: 256.3 | G56: 26.63 | H56: =C56*D56*F56+C56*E56*G56 -> 3395.16
A57: SUB-TOTAL | H57: =SUM(H56:H56) -> 3395.16
A58: MATERIAL
A59: DISCRIMINAÇÃO | B59: UNIDADE | C59: QUANT. | G59: P.UNIT. | H59: P.TOTAL
H60: =C60*G60 -> 0
A61: SUB-TOTAL | H61: =SUM(H60:H60) -> 0
A62: SERVIÇOS - COMPOSIÇÕES AUXILIARES
A63: DISCRIMINAÇÃO | B63: UNIDADE | C63: QUANT. | G63: P.UNIT. | H63: P.TOTAL
H64: =C64*G64 -> 0
A65: SUB-TOTAL | H65: =SUM(H64:H64) -> 0
A66: MÃO DE OBRA
A67: DISCRIMINAÇÃO | B67: UNIDADE | C67: QUANT. | G67: P.UNIT. | H67: P.TOTAL
A68: Servente | B68: h | C68: 120 | G68: 7.69 | H68: =C68*G68 -> 922.8
A69: SUB-TOTAL | H69: =SUM(H68:H68) -> 922.8
A70: PRODUÇÃO DA EQUIPE | B70: 1 | C70: CUSTO | H70: =H69+H65+H61+H57 -> 4317.96
A71: TOTAL - R$ | H71: =H70/B70 -> 4317.96
A72: BDI % | H72: 1.25
A73: TOTAL DO SERVIÇO - R$ | H73: =ROUND(H71*H72,2) -> 5397.45

Sheet BDI-serviços
B2: DETALHAMENTO DO BDI - SERVIÇOS
B7: Item | C7: Descrição dos Serviços | D7: % | E7: %
D8: PV | E8: CD
B10: 1 | C10: ADMINISTRAÇÃO CENTRAL | E10: 6
B11: 1.1 | C11: ESCRITÓRIO CENTRAL
B12: 1.2 | C12: VIAGENS
B13: 1.3 | C13: OUTROS
B15: 2 | C15: IMPOSTOS E TAXAS | D15: =SUM(D16:D18) -> 6.65
B16: 2.1 | C16: ISS | D16: 3
B17: 2.2 | C17: PIS | D17: 0.65
B18: 2.3 | C18: Cofins | D18: 3
B20: 3 | C20: TAXA DE RISCO | E20: =SUM(E21:E24) -> 0.97
B21: 3.1 | C21: SEGURO | E21: 0.27
B22: 3.2 | C22: RISCO | E22: 0.3
B23: 3.3 | C23: GARANTIA | E23: 0.4
B25: 4 | C25: DESPESAS FINANCEIRAS | E25: 1
B27: 5 | C27: LUCRO | E27: 8
C29: BDI - CALCULADO | E29: =ROUND((((1+(E10+E20)/100)*(1+E25/100)*(1+E27/100)/(1-D15/100)-1)*100),2) -> 25
B33: BDI = ((1+((AC+S+R+G)/100))x(1+DF/100)x(1+L/100)/(1-I/100)-1)*100
B35: BDI (CALCULADO): | D35: =ROUND((((1+((E10+E20)/100))*(1+E25/100)*(1+E27/100))/(1-D15/100)-1)*100,2) -> 25
B37: Para o preenchimento da proposta deve-se utilizar o valor de ISS da Prefeitura Local.
B39: BDI CALCULADO CONFORME ACÓRDÃO Nº 2369/2011 – TCU

Sheet Enc Mensalistas
B3: E N C A R G O S S O C I A I S
B4: Planilha de Cálculo - Mensalistas
B7: A- | C7: Encargos Sociais Básicos
B8: A1- | C8: Seconci | E8: =G8 -> 0 | G8: 0
B9: A2- | C9: INSS | E9: 0.2
B10: A3- | C10: FGTS | E10: 0.08
B11: A4- | C11: Incra | E11: 0.002
B12: A5- | C12: Salário Educação | E12: 0.025
B13: A6- | C13: Sebrae | E13: 0.006
B14: A7- | C14: Seguro contra acidente | E14: 0.03
B15: A8- | C15: Senai | E15: 0.01
B16: A9- | C16: Sesi | E16: 0.015
C17: Total | E17: =ROUND(SUM(E8:E16),4) -> 0.368 | F17: A
B19: B- | C19: Encargos Sociais Que Recebem Incidências de A
B20: B1- | C20: 13º Salário | E20: =ROUND(E39/E41,4) -> 0.0822
C21: Total | E21: =ROUND(SUM(E20:E20),4) -> 0.0822 | F21: B
B23: C- | C23: Encargos Que Não Recebem Incidências Globais de A
B24: C1- | C24: Depósito por despedida injusta | E24: =ROUND(0.5*(E10+(E10*E21)),4) -> 0.0433
B25: C2- | C25: Férias | E25: =ROUND(1.33*(E39/E41),4) -> 0.1093
B26: C3- | C26: Aviso prévio | E26: =ROUND(E39/(E41/12*G26),4) -> 0.102 | F26: TP = | G26: 9.67
C27: Total | E27: =ROUND(SUM(E24:E26),4) -> 0.2546 | F27: C
B29: D- | C29: Taxa de Reincidência
B30: D1- | C30: Reincidência de A sobre B | D30: A% x B% | E30: =ROUND(E17*0.0822,4) -> 0.0302 | G30: =E17*E21 -> 0.0302496
B31: D2- | C31: Reincidência de A sobre C3 | D31: A% x C3% | E31: =ROUND((E17-E8)*0.102,4) -> 0.0375 | G31: =E17*E26 -> 0.037536
C32: Total | E32: =ROUND(SUM(E30:E31),4) -> 0.0677 | F32: D | G32: =G30+G31 -> 0.0677856
C34: TOTAL DOS ENCARGOS | E34: =ROUND(E17+E21+E27+E32,4) -> 0.7725
B38: Relação de variáveis:
B39: V1 | C39: Jornada mensal de trabalho: | E39: 220
B40: V2 | C40: Jornada diária de trabalho: 220/30 | D40: 220/30 | E40: =ROUND(220/30,4) -> 7.3333
B41: V3 | C41: Total de horas anuais: | D41: 365*7,3333 | E41: =365*E40 -> 2676.6545
B42: TP | C42: Tempo de permanência do funcionário na obra, em meses.
B44: Cálculos:
B45: B1- | C45: V1/V3
B46: C1- | C46: 50%x(FGTS+(FGTSxB))
B47: C2- | C47: 1,33xV1/V3
B48: C3- | C48: V1/(V3/12xTP)

Sheet Enc. Horistas
C3: E N C A R G O S S O C I A I S
C4: Planilha de Cálculo - Horistas
B6: A- | C6: Encargos Sociais Básicos
B7: A1- | C7: Seconci | E7: =H7 -> 0 | G7: A1= | H7: 0
B8: A2- | C8: INSS | E8: 0.2
B9: A3- | C9: FGTS | E9: 0.08
B10: A4- | C10: Incra | E10: 0.002
B11: A5- | C11: Salário Educação | E11: 0.025
B12: A6- | C12: Sebrae | E12: 0.006
B13: A7- | C13: Seguro contra acidente | E13: 0.03
B14: A8- | C14: Senai | E14: 0.01
B15: A9- | C15: Sesi | E15: 0.015
C16: Total | E16: =ROUND(SUM(E7:E15),4) -> 0.368 | F16: A
B18: B- | C18: Encargos Sociais Que Recebem Incidências de A
B19: B1- | C19: Descanso Semanal e Feriados | E19: =ROUND((E43+E44)/E48,4) -> 0.229
B20: B2- | C20: Auxílio enfermidade | E20: =ROUND(E45/E48,4) -> 0.0079
B21: B3- | C21: Licença paternidade | E21: =ROUND(E46/E48,4) -> 0.0034
B22: B4- | C22: 13º Salário | E22: =ROUND(E40/E48,4) -> 0.1057
B23: B5- | C23: Dias de chuva e faltas justificadas | E23: =ROUND(E47/E48,4) -> 0.0457
C24: Total | E24: =ROUND(SUM(E19:E23),4) -> 0.3917 | F24: B
B26: C- | C26: Encargos Que Não Recebem Incidências Globais de A
B27: C1- | C27: Depósito por despedida injusta | E27: =ROUND(0.5*(E9+(E9*E24)),4) -> 0.0557
B28: C2- | C28: Férias | E28: =ROUND(1.33*(E40/E48),4) -> 0.1406
B29: C3- | C29: Aviso prévio | E29: =ROUND(E40/(E48/12*C62),4) -> 0.1312
C30: Total | E30: =ROUND(SUM(E27:E29),4) -> 0.3275 | F30: C
B32: D- | C32: Taxa de Reincidência
B33: D1- | C33: Reincidência de A sobre B | D33: A% x B% | E33: =ROUND(E16*E24,4) -> 0.1441
B34: D2- | C34: Reincidência de A sobre C3 | D34: A% x C3% | E34: =ROUND((E16*E29),4) -> 0.0483
C35: Total | E35: =SUM(E33:E34) -> 0.1924 | F35: D
C37: TOTAL DOS ENCARGOS | E37: =ROUND(E16+E24+E30+E35,4) -> 1.2796
B39: Relação de variáveis:
B40: V1 | C40: Jornada mensal de trabalho: | E40: 220
B41: V2 | C41: Jornada diária de trabalho: 220/30 | D41: 220/30 | E41: =ROUND(220/30,4) -> 7.3333
B42: V3 | C42: Total de horas anuais: | D42: 365*7,3333 | E42: =365*E41 -> 2676.6545
B43: V4 | C43: Descanso semanal remunerado: | D43: ND*7,3333 | E43: =ROUND(C64*7.3333,2) -> 381.33
B44: V5 | C44: Feriados: | D44: NF*7,3333 | E44: =ROUND(C65*7.3333,2) -> 95.33
B45: V6 | C45: Auxílio enfermidade: | D45: 15*7,3333*PA1 | E45: =ROUND(15*7.3333*C66,2) -> 16.5
B46: V7 | C46: Licença paternidade: | D46: 5*7,3333*PA2 | E46: =ROUND(5*7.3333*C67,2) -> 7.11
B47: V8 | C47: Dias de chuva e faltas justificadas | D47: ND*7,3333 | E47: =ROUND(C68*7.3333,2) -> 95.19
B48: V9 | C48: Horas produtivas em um ano: | D48: V3-V4-V5-V6-V7-V8 | E48: =E42-E43-E44-E45-E46-E47 -> 2081.1945
B49: TP | C49: Tempo de permanência do funcionário na obra em meses.
B51: Cálculos:
B52: B1- | C52: (V4+V5)/V9
B53: B2- | C53: V6/V9
B54: B3- | C54: V7/V9
B55: B4- | C55: V1/V9
B56: B5- | C56: V8/V9
B58: C1- | C58: 50%x(FGTS+(FGTSxB))
B59: C2- | C59: 1,33xV1/V9
B60: C3- | C60: V1/(V9/12xTP)
B62: TP = | C62: 9.67
B64: ND= | C64: 52 | D64: Nº de domingos no ano
B65: NF= | C65: 13 | D65: Nº de feriados no ano
B66: PA1= | C66: 0.15 | D66: Perc. adesão ao auxílio enfermidade
B67: PA2= | C67: 0.194 | D67: Perc. adesão à licença paternidade
B68: ND= | C68: 12.98 | D68: Nº dias chuva e faltas justificadas
